bitfinex/quotes_SOLUSD_20220118
["timestamp","ask_amount","ask_price","bid_price","bid_amount"]
[1642503032407,6.34639772,137.6,137.51,13.388]
[1642503032611,17.25109772,137.6,137.51,35.965]
[1642503032810,0.25,137.59,137.51,13.388]
[1642503033012,2.908,137.58,137.51,10.48]
[1642503033511,9.43839772,137.6,137.51,10.48]
[1642503033512,2.908,137.59,137.51,10.48]
[1642503033709,2.908,137.59,137.51,13.388]
[1642503034111,45.18695639,137.58,137.51,13.388]
[1642503034310,2.908,137.57,137.51,10.48]
[1642503034712,13.8144,137.57,137.51,10.48]
[1642503035612,0.25,137.56,137.49,2.908]
[1642503035810,2.908,137.55,137.48,46.5546]
[1642503036012,13.8166,137.55,137.48,46.5546]
[1642503036836,58.03564818,137.55,137.49,49.12373784]
[1642503037036,13.8166,137.55,137.49,49.12373784]
[1642503042849,2.908,137.55,137.49,49.12373784]
[1642503043441,0.25,137.56,137.49,49.12373784]
[1642503043442,3.158,137.56,137.49,49.12373784]
[1642503043741,0.25,137.56,137.49,49.12373784]
[1642503043942,6.25,137.56,137.49,49.12373784]
[1642503044146,17.1577,137.56,137.49,49.12373784]
[1642503044344,39.04226629,137.55,137.49,49.12373784]
[1642503044548,2.908,137.54,137.49,49.12373784]
[1642503044743,3.158,137.54,137.49,49.12373784]
[1642503045148,0.25,137.54,137.49,49.12373784]
[1642503045343,2.908,137.53,137.49,49.12373784]
[1642503046744,11.16,137.54,137.49,49.12373784]
[1642503048251,10.908,137.55,137.49,49.12373784]
[1642503048449,36.3658,137.57,137.49,52.03173784]
[1642503048450,2.908,137.57,137.49,52.03173784]
[1642503048748,2.908,137.57,137.5,0.25]
[1642503048955,3.43839772,137.58,137.51,13.388]
[1642503049151,3.43839772,137.58,137.52,45.35892143]
[1642503049351,3.43839772,137.58,137.53,2.908]
[1642503049950,3.43839772,137.58,137.53,13.8105]
[1642503050349,3.43839772,137.61,137.53,13.8105]
[1642503050549,0.25,137.6,137.53,37.5382]
[1642503051752,51.46501648,137.61,137.53,37.5382]
[1642503051950,51.46501648,137.61,137.53,48.0182]
[1642503052150,48.02661876,137.61,137.53,48.0182]
[1642503052750,48.02661876,137.61,137.54,0.25]
[1642503052951,50.93361876,137.61,137.53,26.6357]
[1642503053252,56.93361876,137.61,137.53,23.7277]
[1642503053652,0.25,137.6,137.53,23.7277]
[1642503053859,2.907,137.59,137.53,23.7277]
[1642503054052,2.907,137.6,137.53,23.7277]
[1642503054252,3.157,137.6,137.53,23.7277]
[1642503055454,2.907,137.6,137.54,0.25]
[1642503055653,3.43839772,137.61,137.54,0.25]
[1642503056060,3.43839772,137.62,137.54,0.25]
[1642503056856,3.43839772,137.62,137.55,43.74689991]
[1642503057056,3.43839772,137.62,137.55,46.65389991]
[1642503057256,6.34539772,137.63,137.55,46.65389991]
[1642503057458,0.25,137.62,137.55,43.74689991]
[1642503057858,11.1526,137.62,137.55,43.74689991]
[1642503059462,2.907,137.61,137.55,43.74689991]
[1642503060864,14.0596,137.62,137.55,43.74689991]
[1642503062907,13.8096,137.62,137.56,0.25]
[1642503063109,13.8096,137.62,137.55,43.74689991]
[1642503065112,13.8096,137.62,137.56,0.25]
[1642503065311,10.9026,137.62,137.56,3.157]
[1642503066336,13.8096,137.62,137.56,0.25]
[1642503066737,38.18624216,137.61,137.56,0.25]
[1642503067539,49.08944216,137.61,137.56,0.25]
[1642503069548,2.907,137.62,137.56,0.25]
[1642503069741,6.34539772,137.63,137.56,0.25]
[1642503069942,3.43839772,137.63,137.57,2.907]
[1642503070344,3.43839772,137.63,137.58,0.25]
[1642503070543,3.43839772,137.63,137.58,38.07648278]
[1642503071246,34.79329454,137.64,137.58,38.07648278]
[1642503071651,3.43839772,137.65,137.58,59.45548278]
[1642503072048,0.25,137.64,137.58,59.45548278]
[1642503072244,0.25,137.64,137.58,10.73]
[1642503072844,11.151,137.64,137.58,10.48]
[1642503073045,11.151,137.64,137.56,2.906]
[1642503073247,38.48086836,137.62,137.57,0.25]
[1642503074249,38.48086836,137.62,137.56,0.25]
[1642503074551,49.38386836,137.62,137.56,0.25]
[1642503075349,10.903,137.62,137.56,0.25]
[1642503075548,14.58989772,137.64,137.56,10.73]
[1642503075849,17.49589772,137.64,137.56,10.73]
[1642503076448,49.53503857,137.63,137.56,10.73]
[1642503076851,49.53503857,137.63,137.56,10.48]
[1642503077054,0.25,137.62,137.56,10.48]
[1642503077651,49.53503857,137.63,137.56,10.48]
[1642503078254,49.53503857,137.63,137.57,0.25]
[1642503081563,0.25,137.62,137.57,0.25]
[1642503081764,14.06,137.62,137.57,0.25]
[1642503081962,14.06,137.62,137.56,0.25]
[1642503082165,14.06,137.62,137.55,77.74063902]
[1642503082563,14.06,137.62,137.55,71.74063902]
[1642503084168,14.06,137.62,137.55,23.3121]
[1642503084368,17.49839772,137.62,137.52,13.387]
[1642503084568,41.19209772,137.62,137.51,26.4112]
[1642503084767,47.19209772,137.62,137.51,29.7542]
[1642503085191,47.19209772,137.62,137.52,40.42394499]
[1642503085393,7.46558529,137.61,137.52,40.42394499]
[1642503085591,2.907,137.6,137.53,0.25]
[1642503085791,10.9053,137.59,137.53,0.25]
[1642503086191,0.25,137.58,137.53,0.25]
[1642503088106,10.9053,137.59,137.53,0.25]
[1642503088294,13.8109,137.61,137.53,3.157]
[1642503088494,13.8109,137.61,137.53,27.1272]
[1642503089195,13.8109,137.61,137.53,33.1272]
[1642503089596,10.9039,137.61,137.53,33.1272]
[1642503091499,10.9039,137.61,137.53,44.0302]
[1642503092497,65.18904357,137.62,137.53,44.0302]
[1642503092702,0.25,137.61,137.53,44.0302]
[1642503094603,11.1532,137.61,137.53,44.0302]
[1642503097208,14.0602,137.61,137.53,44.0302]
[1642503099412,14.0602,137.61,137.53,33.1272]
[1642503099613,14.0602,137.61,137.53,27.1272]
[1642503100015,20.0602,137.61,137.53,2.907]
[1642503100313,20.0602,137.61,137.51,2.907]
[1642503100518,20.0602,137.61,137.5,24.7071]
[1642503100714,20.0602,137.61,137.49,22.5626]
[1642503100914,23.7147,137.6,137.5,36.88857798]
[1642503101114,10.9082,137.57,137.47,10.9073]
[1642503101317,2.908,137.56,137.47,35.2202]
[1642503101514,3.158,137.56,137.47,37.28719089]
[1642503101714,3.158,137.56,137.47,26.37989089]
[1642503102119,47.17156098,137.55,137.48,37.17673872]
[1642503102316,2.908,137.54,137.48,37.17673872]
[1642503102516,3.158,137.54,137.48,37.17673872]
[1642503103517,14.0668,137.54,137.48,37.17673872]
[1642503108252,2.908,137.54,137.48,37.17673872]
[1642503108450,2.908,137.54,137.49,0.25]
[1642503108645,2.06121593,137.55,137.49,0.25]
[1642503109751,12.96891593,137.56,137.49,0.25]
[1642503109947,0.25,137.55,137.49,0.25]
[1642503110549,12.96891593,137.56,137.49,0.25]
[1642503111349,2.06121593,137.56,137.49,11.1563]
[1642503111549,2.06121593,137.56,137.49,17.1563]
[1642503111952,2.06121593,137.56,137.49,41.5428]
[1642503113052,2.06121593,137.56,137.5,2.908]
[1642503113254,2.06121593,137.56,137.51,49.25429492]
[1642503115258,2.06121593,137.56,137.51,55.25429492]
[1642503115557,2.06121593,137.56,137.51,49.25429492]
[1642503116258,2.06121593,137.57,137.51,49.25429492]
[1642503117159,2.06121593,137.57,137.51,60.15889492]
[1642503118959,47.24440414,137.57,137.51,60.15889492]
[1642503119260,3.158,137.56,137.5,2.908]
[1642503119660,9.158,137.56,137.5,2.908]
[1642503119861,3.158,137.56,137.5,2.908]
[1642503120060,2.908,137.56,137.5,13.8135]
[1642503120265,2.06121593,137.55,137.51,0.25]
[1642503120460,2.06121593,137.55,137.52,2.908]
[1642503120860,2.06121593,137.55,137.52,8.908]
[1642503121062,2.06121593,137.55,137.53,42.36327163]
[1642503121263,5.49961365,137.58,137.54,6.06439994]
[1642503121461,2.06121593,137.58,137.54,6.06439994]
[1642503122262,2.06121593,137.57,137.54,6.06439994]
[1642503123065,2.06121593,137.57,137.55,0.25]
[1642503123264,2.06121593,137.57,137.56,6.06439994]
[1642503123463,2.06121593,137.57,137.56,41.44784464]
[1642503123963,2.06121593,137.58,137.56,41.44784464]
[1642503129673,2.06121593,137.58,137.57,0.25]
[1642503130498,2.06121593,137.59,137.57,0.25]
[1642503130903,2.06121593,137.59,137.58,3.03219997]
[1642503131104,2.06121593,137.59,137.58,6.06439994]
[1642503131304,2.06121593,137.6,137.58,6.06439994]
[1642503133301,2.06121593,137.59,137.58,6.06439994]
[1642503134803,2.31121593,137.59,137.58,6.06439994]
[1642503135502,2.06121593,137.59,137.58,6.06439994]
[1642503135705,2.31121593,137.59,137.58,6.06439994]
[1642503136103,2.06121593,137.59,137.58,6.06439994]
[1642503136504,3.43839772,137.62,137.58,6.06439994]
[1642503137204,3.43839772,137.62,137.59,44.48258026]
[1642503137503,3.43839772,137.62,137.58,6.06439994]
[1642503137705,3.43839772,137.62,137.56,2.906]
[1642503137904,6.34539772,137.62,137.57,0.25]
[1642503138505,6.34539772,137.62,137.57,11.1499]
[1642503138705,38.02265842,137.63,137.57,0.25]
[1642503138906,44.02265842,137.63,137.57,0.25]
[1642503139107,44.02265842,137.63,137.55,25.716]
[1642503139305,3.157,137.62,137.55,22.809]
[1642503139705,3.157,137.62,137.56,0.25]
[1642503140306,9.157,137.62,137.54,10.48]
[1642503140508,20.0597,137.62,137.54,10.48]
[1642503140709,28.0927,137.62,137.52,34.4275]
[1642503140910,50.7346,137.62,137.53,0.25]
[1642503141310,50.7346,137.62,137.53,48.82028265]
[1642503141910,50.4846,137.62,137.53,48.82028265]
[1642503142211,7.57912061,137.61,137.53,48.82028265]
[1642503142411,36.22649441,137.6,137.53,48.82028265]
[1642503142810,36.22649441,137.6,137.53,48.57028265]
[1642503143412,47.13079441,137.6,137.53,48.57028265]
[1642503143612,47.13079441,137.6,137.53,51.47728265]
[1642503144215,47.13079441,137.6,137.54,0.25]
[1642503145114,11.1555,137.59,137.53,2.907]
[1642503145314,2.907,137.58,137.49,13.387]
[1642503145516,25.89,137.58,137.49,10.48]
[1642503145715,0.25,137.57,137.49,10.48]
[1642503145916,2.908,137.56,137.49,10.48]
[1642503146115,41.94423507,137.56,137.5,42.48392772]
[1642503146315,11.1581,137.55,137.5,42.48392772]
[1642503149519,0.25,137.55,137.5,42.48392772]
[1642503153324,2.908,137.57,137.5,42.48392772]
[1642503153525,84.2174129,137.58,137.51,0.25]
[1642503153723,84.2174129,137.58,137.51,3.158]
[1642503154224,80.77901518,137.58,137.51,3.158]
[1642503154427,80.77901518,137.58,137.51,26.2585]
[1642503154725,33.8893,137.58,137.51,26.2585]
[1642503155926,82.62877171,137.58,137.51,26.2585]
[1642503156126,82.62877171,137.58,137.51,23.3505]
[1642503156968,82.62877171,137.58,137.51,23.1005]
[1642503157154,2.908,137.57,137.51,23.1005]
[1642503157364,82.62877171,137.58,137.51,23.1005]
[1642503157556,82.62877171,137.58,137.52,0.25]
[1642503158355,71.72247171,137.58,137.52,0.25]
[1642503158857,22.983,137.58,137.52,0.25]
[1642503159255,2.908,137.59,137.52,12.60013079]
[1642503159457,3.43839772,137.6,137.53,2.907]
[1642503159655,3.43839772,137.6,137.53,25.67]
[1642503159855,3.43839772,137.6,137.54,38.68084666]
[1642503160058,3.43839772,137.6,137.55,2.907]
[1642503160256,3.43839772,137.62,137.56,0.25]
[1642503160857,3.43839772,137.62,137.56,11.1507]
[1642503161055,3.43839772,137.62,137.57,46.80576593]
[1642503161259,3.43839772,137.62,137.58,0.25]
[1642503161757,7.57848236,137.63,137.58,0.25]
[1642503162160,13.57848236,137.63,137.58,0.25]
[1642503162761,9.43839772,137.63,137.58,0.25]
[1642503163062,6.0,137.63,137.58,0.25]
[1642503163260,43.30759772,137.64,137.58,0.25]
[1642503163460,0.25,137.63,137.58,0.25]
[1642503164662,3.156,137.63,137.58,0.25]
[1642503164860,9.156,137.63,137.58,0.25]
[1642503166864,6.25,137.63,137.58,0.25]
[1642503167066,0.25,137.63,137.58,0.25]
[1642503173469,12.09439772,137.64,137.58,0.25]
[1642503173668,8.906,137.64,137.58,0.25]
[1642503175172,0.25,137.63,137.58,0.25]
[1642503175571,2.906,137.64,137.58,0.25]
[1642503175770,2.906,137.64,137.58,83.799]
[1642503175971,2.906,137.64,137.58,11.149]
[1642503176270,4.6794972,137.65,137.59,2.906]
[1642503176469,4.6794972,137.65,137.59,82.123]
[1642503176670,4.6794972,137.65,137.6,0.25]
[1642503176872,4.6794972,137.65,137.6,47.59454543]
[1642503177171,1.49109948,137.65,137.6,47.59454543]
[1642503177372,1.49109948,137.65,137.6,83.33224543]
[1642503177575,1.49109948,137.65,137.6,155.98224543]
[1642503178073,38.441161,137.65,137.6,72.18524543]
[1642503179074,38.441161,137.65,137.6,47.34454543]
[1642503179676,1.49109948,137.65,137.6,47.34454543]
[1642503180677,40.33891639,137.65,137.6,47.34454543]
[1642503180877,40.33891639,137.65,137.58,99.7866]
[1642503181080,40.33891639,137.65,137.59,0.25]
[1642503181578,51.23901639,137.65,137.59,0.25]
[1642503181778,40.33891639,137.65,137.59,35.43429518]
[1642503183481,40.33891639,137.65,137.59,46.33259518]
[1642503184282,40.33891639,137.65,137.59,46.08259518]
[1642503184482,1.49109948,137.65,137.6,0.25]
[1642503184684,1.49109948,137.65,137.6,14.0529]
[1642503184882,2.906,137.69,137.6,21.9189]
[1642503185382,37.6577138,137.68,137.6,21.9189]
[1642503185586,2.906,137.67,137.6,19.0129]
[1642503185783,8.906,137.67,137.6,19.0129]
[1642503185983,8.906,137.67,137.6,10.8969]
[1642503186685,0.25,137.66,137.6,10.8969]
[1642503186886,8.906,137.67,137.6,10.8969]
[1642503187585,6.0,137.67,137.61,0.25]
[1642503187786,6.0,137.69,137.61,11.1463]
[1642503187985,68.915,137.7,137.61,11.1463]
[1642503188189,0.25,137.68,137.61,11.1463]
[1642503188486,0.25,137.68,137.62,35.35076578]
[1642503188686,3.154,137.68,137.63,0.25]
[1642503188890,9.154,137.68,137.63,0.25]
[1642503191514,20.052,137.68,137.6,23.8037]
[1642503191718,20.052,137.68,137.61,0.25]
[1642503192415,20.052,137.68,137.61,38.70392053]
[1642503193316,17.148,137.68,137.61,38.70392053]
[1642503200220,17.148,137.68,137.61,38.45392053]
[1642503200720,17.148,137.68,137.62,0.25]
[1642503202925,17.148,137.68,137.61,38.45392053]
[1642503205226,2.906,137.67,137.61,38.45392053]
[1642503205425,10.8994,137.66,137.61,38.45392053]
[1642503205625,48.90424064,137.66,137.61,38.45392053]
[1642503206332,11.1494,137.66,137.61,38.45392053]
[1642503206529,41.748,137.68,137.61,38.45392053]
[1642503206727,41.748,137.68,137.61,41.35992053]
[1642503207626,41.748,137.68,137.62,0.25]
[1642503208327,0.25,137.67,137.62,0.25]
[1642503208835,0.25,137.67,137.61,38.45392053]
[1642503209030,11.1489,137.67,137.61,38.45392053]
[1642503209231,41.41053917,137.66,137.6,2.904]
[1642503209428,44.31653917,137.66,137.58,24.3538]
[1642503209631,0.25,137.65,137.58,24.3538]
[1642503210128,11.1503,137.65,137.59,46.44870493]
[1642503211130,10.9003,137.65,137.6,0.25]
[1642503211331,10.9003,137.65,137.59,46.44870493]
[1642503211533,10.9003,137.65,137.6,2.906]
[1642503211731,10.9003,137.65,137.6,0.25]
[1642503213932,10.9003,137.65,137.59,46.44870493]
[1642503214134,10.9003,137.65,137.6,0.25]
[1642503219336,44.1335978,137.67,137.6,0.25]
[1642503219533,61.0327978,137.67,137.6,23.7972]
[1642503220338,0.25,137.66,137.6,23.7972]
[1642503221534,11.1493,137.66,137.6,23.7972]
[1642503225539,13.8053,137.66,137.6,23.7972]
[1642503225940,13.8053,137.66,137.6,23.5472]
[1642503226541,10.8993,137.66,137.59,46.44870493]
[1642503227241,0.25,137.65,137.58,26.5116]
[1642503227440,10.9015,137.64,137.59,0.25]
[1642503228141,39.97450812,137.63,137.56,2.906]
[1642503228342,13.81,137.62,137.56,2.906]
[1642503228741,0.25,137.61,137.56,2.906]
[1642503228944,8.513,137.61,137.56,2.906]
[1642503229741,8.513,137.61,137.55,48.40164491]
[1642503230444,10.9042,137.6,137.55,48.40164491]
[1642503231044,2.907,137.62,137.55,48.40164491]
[1642503231744,0.25,137.61,137.55,48.40164491]
[1642503231945,11.1533,137.61,137.55,48.40164491]
[1642503232645,11.1533,137.61,137.56,0.25]
[1642503233348,17.1533,137.61,137.56,0.25]
[1642503234250,6.0,137.61,137.56,0.25]
[1642503234649,8.907,137.62,137.56,1.69623079]
[1642503234847,6.0,137.62,137.56,26.22193079]
[1642503235047,6.0,137.62,137.56,24.7757]
[1642503235450,6.0,137.62,137.56,35.6767]
[1642503235647,16.9023,137.63,137.56,35.6767]
[1642503235847,16.9023,137.63,137.57,2.907]
[1642503236047,6.0,137.63,137.56,38.5827]
[1642503236248,57.04973148,137.64,137.56,38.5827]
[1642503237049,0.25,137.63,137.56,38.3327]
[1642503237252,14.0588,137.63,137.56,24.5257]
[1642503237652,20.0588,137.63,137.56,24.5257]
[1642503238052,20.0588,137.63,137.55,48.40164491]
[1642503239058,20.0588,137.63,137.53,24.7262]
[1642503239257,20.0588,137.63,137.54,0.25]
[1642503239858,24.9715,137.62,137.54,24.3227]
[1642503240056,50.17734109,137.6,137.54,67.84280504]
[1642503240258,0.25,137.59,137.54,67.84280504]
[1642503241059,0.25,137.59,137.54,24.3227]
[1642503241260,45.27264109,137.6,137.54,24.3227]
[1642503242363,45.27264109,137.6,137.54,24.0727]
[1642503242563,10.9049,137.59,137.54,24.0727]
[1642503242763,16.9049,137.59,137.54,24.0727]
[1642503244464,6.0,137.59,137.54,24.0727]
[1642503244665,6.0,137.59,137.55,0.25]
[1642503244866,39.27264109,137.6,137.55,0.25]
[1642503245265,45.27264109,137.6,137.55,0.25]
[1642503245465,45.27264109,137.6,137.54,26.9797]
[1642503245865,39.27264109,137.6,137.54,26.9797]
[1642503246067,50.17684109,137.6,137.54,26.9797]
[1642503246288,0.25,137.59,137.54,26.9797]
[1642503246483,0.25,137.59,137.54,24.0727]
[1642503246884,0.25,137.59,137.54,39.0690978]
[1642503247084,3.157,137.59,137.54,39.0690978]
[1642503247486,14.0623,137.59,137.54,39.0690978]
[1642503248787,11.1553,137.59,137.54,39.0690978]
[1642503252788,14.0623,137.59,137.54,39.0690978]
[1642503254089,3.157,137.59,137.54,39.0690978]
[1642503254289,0.25,137.59,137.54,39.0690978]
[1642503256493,39.3741841,137.61,137.54,39.0690978]
[1642503256693,38.53247486,137.61,137.55,0.25]
[1642503256893,44.53247486,137.61,137.55,3.157]
[1642503257192,0.25,137.6,137.55,2.907]
[1642503257394,0.25,137.6,137.54,39.0690978]
[1642503257595,0.25,137.6,137.55,0.25]
[1642503257993,0.25,137.6,137.55,22.8948]
[1642503259595,11.1542,137.6,137.55,22.8948]
[1642503259795,17.1542,137.6,137.55,22.8948]
[1642503260598,11.1542,137.6,137.55,22.8948]
[1642503261098,11.1542,137.6,137.52,2.907]
[1642503261309,13.8122,137.59,137.53,24.087]
[1642503261503,48.46065162,137.58,137.53,24.087]
[1642503261904,48.46065162,137.58,137.54,43.78117632]
[1642503262306,48.46065162,137.58,137.53,24.087]
[1642503264810,23.4708,137.6,137.53,24.087]
[1642503265212,0.25,137.6,137.53,24.087]
[1642503266111,0.25,137.6,137.53,37.8975]
[1642503267011,8.907,137.61,137.53,37.8975]
[1642503267211,6.0,137.61,137.53,37.8975]
[1642503267411,10.9041,137.6,137.53,26.994]
[1642503267613,10.9041,137.6,137.53,32.994]
[1642503268214,46.7634463,137.62,137.53,32.994]
[1642503268415,0.25,137.61,137.53,32.994]
[1642503269414,0.25,137.61,137.53,43.8972]
[1642503270014,2.31529076,137.61,137.53,45.95701913]
[1642503270414,8.31529076,137.61,137.53,45.95701913]
[1642503271921,11.22229076,137.61,137.53,45.95701913]
[1642503272819,22.12559076,137.61,137.53,45.95701913]
[1642503273220,22.12559076,137.61,137.53,29.05381913]
[1642503273520,45.85619076,137.61,137.53,29.05381913]
[1642503274620,45.85619076,137.61,137.53,26.994]
[1642503274819,2.06529076,137.6,137.53,26.744]
[1642503275019,58.92029424,137.59,137.53,26.744]
[1642503275219,59.17029424,137.59,137.54,0.25]
[1642503275419,62.26329424,137.59,137.54,0.25]
[1642503276521,62.26329424,137.59,137.53,23.837]
[1642503276723,2.907,137.58,137.53,23.837]
[1642503277121,2.907,137.58,137.52,47.66430597]
[1642503277321,0.25,137.57,137.52,47.66430597]
[1642503278421,0.25,137.57,137.52,58.56860597]
[1642503282333,0.25,137.57,137.52,47.66430597]
[1642503282934,0.25,137.57,137.52,71.00730597]
[1642503284335,2.907,137.58,137.52,71.00730597]
[1642503284536,2.907,137.58,137.53,0.25]
[1642503284735,3.57157551,137.6,137.53,0.25]
[1642503284935,0.25,137.59,137.53,0.25]
[1642503285136,3.57157551,137.6,137.53,0.25]
[1642503285435,3.57157551,137.6,137.54,1.44623079]
[1642503285635,3.57157551,137.6,137.55,2.907]
[1642503285838,3.57157551,137.6,137.55,14.0586]
[1642503286136,3.57157551,137.6,137.56,35.48709356]
[1642503286744,1.50628475,137.6,137.56,35.48709356]
[1642503288361,1.50628475,137.6,137.56,60.20699356]
[1642503292670,1.50628475,137.6,137.56,35.48709356]
[1642503296375,7.50628475,137.6,137.56,35.48709356]
[1642503296573,1.50628475,137.6,137.56,35.48709356]
[1642503302588,44.85432829,137.6,137.55,23.7344]
[1642503302788,3.157,137.59,137.55,23.7344]
[1642503303190,9.004,137.59,137.53,2.05981913]
[1642503303391,15.004,137.59,137.53,2.05981913]
[1642503303590,25.9088,137.59,137.53,2.05981913]
[1642503304191,25.9088,137.59,137.52,2.05981913]
[1642503304390,25.9088,137.59,137.52,2.30981913]
[1642503305196,19.9088,137.59,137.52,2.30981913]
[1642503305393,27.97409076,137.59,137.52,0.25]
[1642503305596,21.97409076,137.59,137.52,0.25]
[1642503305796,27.97409076,137.59,137.52,0.25]
[1642503306420,21.97409076,137.59,137.52,0.25]
[1642503306622,22.12709076,137.59,137.52,0.25]
[1642503307124,16.12709076,137.59,137.52,24.7046]
[1642503307325,22.12709076,137.59,137.52,24.7046]
[1642503310224,16.12709076,137.59,137.52,24.7046]
[1642503314529,16.12709076,137.59,137.52,24.4546]
[1642503316632,22.12709076,137.59,137.52,24.4546]
[1642503318062,22.12709076,137.59,137.51,43.53127285]
[1642503318869,94.77709076,137.59,137.51,43.53127285]
[1642503319365,105.25709076,137.59,137.51,43.53127285]
[1642503319566,105.25709076,137.59,137.5,2.05981913]
[1642503319767,2.06529076,137.58,137.51,0.25]
[1642503319971,10.9091,137.56,137.51,0.25]
[1642503320365,0.25,137.55,137.49,4.96681913]
[1642503320569,36.75819769,137.55,137.49,44.58976872]
[1642503320765,42.75819769,137.55,137.49,44.58976872]
[1642503320968,6.25,137.55,137.49,44.58976872]
[1642503321368,6.25,137.55,137.49,42.52994959]
[1642503321569,10.9089,137.54,137.49,39.62294959]
[1642503321867,72.9,137.53,137.48,2.05981913]
[1642503322068,3.158,137.53,137.48,2.05981913]
[1642503322266,9.158,137.53,137.48,2.05981913]
[1642503322667,53.69248576,137.53,137.48,39.029507]
[1642503323068,10.9117,137.52,137.48,36.96968787]
[1642503323275,0.25,137.51,137.48,36.96968787]
[1642503323568,0.25,137.51,137.46,2.05981913]
[1642503323767,0.25,137.51,137.45,26.30081913]
[1642503324371,0.25,137.52,137.45,26.30081913]
[1642503324568,13.8193,137.51,137.46,47.86694617]
[1642503324977,0.25,137.52,137.46,50.77494617]
[1642503325170,8.06529076,137.53,137.47,0.25]
[1642503325171,2.06529076,137.53,137.47,0.25]
[1642503325771,2.06529076,137.53,137.47,22.7601]
[1642503325971,15.45329076,137.55,137.47,22.7601]
[1642503326169,0.25,137.54,137.47,22.7601]
[1642503327671,0.25,137.54,137.48,2.908]
[1642503327873,3.158,137.54,137.47,22.7601]
[1642503328074,14.0668,137.54,137.47,22.7601]
[1642503328674,20.0668,137.54,137.47,22.7601]
[1642503329374,14.0668,137.54,137.47,22.7601]
[1642503330176,11.1588,137.54,137.47,22.7601]
[1642503331277,13.8179,137.53,137.47,22.5101]
[1642503331475,86.4679,137.53,137.46,49.9267653]
[1642503331675,0.25,137.52,137.46,49.9267653]
[1642503331875,2.908,137.51,137.46,49.9267653]
[1642503332275,0.25,137.5,137.46,47.86694617]
[1642503332675,11.1622,137.5,137.46,47.86694617]
[1642503333275,11.1622,137.5,137.44,2.05981913]
[1642503333276,17.1622,137.5,137.43,24.71901913]
[1642503333475,11.1622,137.5,137.43,24.71901913]
[1642503334075,17.1622,137.5,137.43,24.71901913]
[1642503334275,11.1622,137.5,137.44,41.16411662]
[1642503334475,14.0702,137.5,137.44,41.16411662]
[1642503335089,11.1622,137.5,137.44,41.16411662]
[1642503335677,10.9122,137.5,137.44,41.16411662]
[1642503336277,16.9122,137.5,137.44,41.16411662]
[1642503336479,16.9122,137.5,137.44,43.22393575]
[1642503337284,0.25,137.49,137.44,43.22393575]
[1642503339083,11.1628,137.49,137.44,43.22393575]
[1642503339384,17.1628,137.49,137.44,43.22393575]
[1642503339582,17.1628,137.49,137.44,41.16411662]
[1642503339583,2.908,137.48,137.44,41.16411662]
[1642503339782,0.25,137.47,137.44,41.16411662]
[1642503340188,0.25,137.47,137.45,3.03219997]
[1642503340390,0.25,137.47,137.45,6.06439994]
[1642503340989,0.25,137.5,137.45,6.06439994]
[1642503341188,2.908,137.49,137.45,6.06439994]
[1642503341590,11.1643,137.48,137.45,6.06439994]
[1642503341789,2.908,137.49,137.45,6.06439994]
[1642503341989,10.97329076,137.51,137.45,6.06439994]
[1642503342190,0.25,137.5,137.45,6.06439994]
[1642503342994,11.1625,137.5,137.45,6.06439994]
[1642503343393,17.1625,137.5,137.45,6.06439994]
[1642503343692,2.908,137.49,137.45,6.06439994]
[1642503344117,0.25,137.48,137.45,6.06439994]
[1642503344619,48.76183747,137.48,137.45,3.03219997]
[1642503344819,48.76183747,137.48,137.43,2.05981913]